[Event "*** Titled Tuesday Blitz"]
[Site "Chess.com"]
[Date "2021.04.06"]
[Round "3"]
[White "BigAl"]
[Black "RamyresCoelho"]
[Result "1-0"]
[WhiteElo "2494"]
[BlackElo "2172"]
[TimeControl "180+1"]
[EndTime "10:29:35 PDT"]
[Termination "BigAl won by checkmate"]

1. Nf3 {[%clk 0:03:00.9]} 1... Nf6 {[%clk 0:02:59.6]} 2. g3 {[%clk 0:02:59.2]}
2... g6 {[%clk 0:02:59.4]} 3. Bg2 {[%clk 0:03:00.1]} 3... Bg7 {[%clk 0:02:59.4]}
4. O-O {[%clk 0:03:01]} 4... O-O {[%clk 0:03:00]} 5. d3 {[%clk 0:03:01.9]} 5...
d6 {[%clk 0:03:00.8]} 6. e4 {[%clk 0:03:01.6]} 6... c6 {[%clk 0:03:01]} 7. Nc3
{[%clk 0:03:00.3]} 7... e5 {[%clk 0:02:58.9]} 8. a4 {[%clk 0:02:59.7]} 8... h6
{[%clk 0:02:58.9]} 9. a5 {[%clk 0:02:57.1]} 9... a6 {[%clk 0:02:58.5]} 10. h3
{[%clk 0:02:56.6]} 10... Be6 {[%clk 0:02:58.7]} 11. d4 {[%clk 0:02:55.5]} 11...
exd4 {[%clk 0:02:57.9]} 12. Nxd4 {[%clk 0:02:54.3]} 12... Bc4 {[%clk 0:02:52.2]}
13. Re1 {[%clk 0:02:54]} 13... Nbd7 {[%clk 0:02:46.7]} 14. b3 {[%clk 0:02:49.7]}
14... Be6 {[%clk 0:02:29.5]} 15. Nxe6 {[%clk 0:02:48.9]} 15... fxe6 {[%clk
0:02:30.4]} 16. Qxd6 {[%clk 0:02:49.2]} 16... Qe8 {[%clk 0:02:22.7]} 17. Be3
{[%clk 0:02:42]} 17... Rd8 {[%clk 0:01:59.4]} 18. Qc7 {[%clk 0:02:40.2]} 18...
Nd5 {[%clk 0:01:48.8]} 19. exd5 {[%clk 0:02:31.2]} 19... Bxc3 {[%clk 0:01:48]}
20. Bxh6 {[%clk 0:02:29.2]} 20... Bxa1 {[%clk 0:01:41.6]} 21. Rxa1 {[%clk
0:02:14.9]} 21... Rf7 {[%clk 0:01:32.8]} 22. dxe6 {[%clk 0:02:09.6]} 22... Rh7
{[%clk 0:01:23.8]} 23. exd7 {[%clk 0:02:04]} 23... Rdxd7 {[%clk 0:01:17.4]} 24.
Qf4 {[%clk 0:02:04.1]} 24... Rdf7 {[%clk 0:01:10.2]} 25. Qd2 {[%clk 0:01:56.5]}
25... Rd7 {[%clk 0:01:05.9]} 26. Qf4 {[%clk 0:01:55.8]} 26... Rdf7 {[%clk
0:01:01.9]} 27. Qc1 {[%clk 0:01:50.6]} 27... Qe5 {[%clk 0:00:58.5]} 28. Be3
{[%clk 0:01:49.6]} 28... Rd7 {[%clk 0:00:52.7]} 29. Ra4 {[%clk 0:01:41.3]} 29...
Rhe7 {[%clk 0:00:50.6]} 30. Rg4 {[%clk 0:01:37.1]} 30... Qf5 {[%clk 0:00:46.3]}
31. Kh2 {[%clk 0:01:28.7]} 31... Kh7 {[%clk 0:00:41.5]} 32. Qb2 {[%clk
0:01:26.6]} 32... Kg8 {[%clk 0:00:36.4]} 33. Rf4 {[%clk 0:01:23.2]} 33... Qe5
{[%clk 0:00:34.4]} 34. Qa3 {[%clk 0:01:15.7]} 34... Rf7 {[%clk 0:00:28.9]} 35.
Rg4 {[%clk 0:01:13.1]} 35... Qf5 {[%clk 0:00:26.8]} 36. Be4 {[%clk 0:01:07.5]}
36... Qe5 {[%clk 0:00:10.9]} 37. Bxg6 {[%clk 0:01:03.8]} 37... Rg7 {[%clk
0:00:11.3]} 38. Qc5 {[%clk 0:00:43.7]} 38... Qe6 {[%clk 0:00:05.5]} 39. Qh5
{[%clk 0:00:41.6]} 39... Rd1 {[%clk 0:00:03.9]} 40. Bh7+ {[%clk 0:00:41]} 40...
Kf8 {[%clk 0:00:03.2]} 41. Rxg7 {[%clk 0:00:35.2]} 41... Kxg7 {[%clk 0:00:04.1]}
42. Qxd1 {[%clk 0:00:34.7]} 42... Kxh7 {[%clk 0:00:03.8]} 43. Qh5+ {[%clk
0:00:34.4]} 43... Kg7 {[%clk 0:00:04]} 44. Qg4+ {[%clk 0:00:34.8]} 44... Kf7
{[%clk 0:00:04.5]} 45. Qxe6+ {[%clk 0:00:34.6]} 45... Kxe6 {[%clk 0:00:05.4]}
46. h4 {[%clk 0:00:34.8]} 46... Kf5 {[%clk 0:00:06.3]} 47. Kh3 {[%clk
0:00:34.8]} 47... Kg6 {[%clk 0:00:07.2]} 48. g4 {[%clk 0:00:34.7]} 48... Kh7
{[%clk 0:00:08.1]} 49. g5 {[%clk 0:00:34.5]} 49... Kg6 {[%clk 0:00:09]} 50. Kg4
{[%clk 0:00:35.3]} 50... Kh7 {[%clk 0:00:09.2]} 51. h5 {[%clk 0:00:36.2]} 51...
Kg7 {[%clk 0:00:10.1]} 52. Kf5 {[%clk 0:00:36.7]} 52... Kh7 {[%clk 0:00:11]} 53.
Bd4 {[%clk 0:00:36.9]} 53... b6 {[%clk 0:00:10.8]} 54. axb6 {[%clk 0:00:36.5]}
54... c5 {[%clk 0:00:10.8]} 55. Bxc5 {[%clk 0:00:35.7]} 55... a5 {[%clk
0:00:11.7]} 56. b7 {[%clk 0:00:36.1]} 56... a4 {[%clk 0:00:12.6]} 57. bxa4
{[%clk 0:00:36.5]} 57... Kg7 {[%clk 0:00:12.4]} 58. b8=Q {[%clk 0:00:36.2]}
58... Kh7 {[%clk 0:00:13.3]} 59. Qc7+ {[%clk 0:00:33.4]} 59... Kh8 {[%clk
0:00:12.5]} 60. a5 {[%clk 0:00:28.1]} 60... Kg8 {[%clk 0:00:11.2]} 61. a6 {[%clk
0:00:28.1]} 61... Kh8 {[%clk 0:00:12.1]} 62. a7 {[%clk 0:00:28.4]} 62... Kg8
{[%clk 0:00:12.4]} 63. c3 {[%clk 0:00:27.9]} 63... Kh8 {[%clk 0:00:10.8]} 64.
a8=Q# {[%clk 0:00:27.8]} 1-0

[Event "*** Titled Tuesday Blitz"]
[Site "Chess.com"]
[Date "2021.04.06"]
[Round "3"]
[White "Redbandit87"]
[Black "Vandros57"]
[Result "0-1"]
[WhiteElo "2395"]
[BlackElo "2217"]
[TimeControl "180+1"]
[EndTime "10:29:35 PDT"]
[Termination "Vandros57 won by checkmate"]

1. d4 {[%clk 0:03:00.9]} 1... Nf6 {[%clk 0:02:58.3]} 2. Bf4 {[%clk 0:03:00.3]}
2... e6 {[%clk 0:02:55.2]} 3. e3 {[%clk 0:02:59.9]} 3... c5 {[%clk 0:02:53.5]}
4. c3 {[%clk 0:02:59.3]} 4... b6 {[%clk 0:02:52]} 5. Nd2 {[%clk 0:02:58.6]} 5...
Bb7 {[%clk 0:02:50.6]} 6. Nc4 {[%clk 0:02:58]} 6... d5 {[%clk 0:02:44.3]} 7. Ne5
{[%clk 0:02:57.7]} 7... Nbd7 {[%clk 0:02:40.7]} 8. Ngf3 {[%clk 0:02:56.9]} 8...
Nxe5 {[%clk 0:02:38]} 9. Nxe5 {[%clk 0:02:56.3]} 9... a6 {[%clk 0:02:29.3]} 10.
dxc5 {[%clk 0:02:38.4]} 10... Bxc5 {[%clk 0:02:20.2]} 11. Bd3 {[%clk 0:02:30.8]}
11... O-O {[%clk 0:02:17.2]} 12. O-O {[%clk 0:02:30.3]} 12... h6 {[%clk
0:02:10]} 13. h3 {[%clk 0:02:22.8]} 13... Bd6 {[%clk 0:02:08.3]} 14. Bh2 {[%clk
0:02:21.8]} 14... Qc7 {[%clk 0:02:06.8]} 15. Nf3 {[%clk 0:02:19.2]} 15... Bxh2+
{[%clk 0:02:05.5]} 16. Nxh2 {[%clk 0:02:20.1]} 16... e5 {[%clk 0:02:02.7]} 17.
Qe2 {[%clk 0:02:15.9]} 17... Rfd8 {[%clk 0:01:55.2]} 18. Ng4 {[%clk 0:02:13.8]}
18... Nxg4 {[%clk 0:01:53.2]} 19. Qxg4 {[%clk 0:02:13.2]} 19... Re8 {[%clk
0:01:31.8]} 20. Rad1 {[%clk 0:01:58.7]} 20... Rad8 {[%clk 0:01:30.1]} 21. Bb1
{[%clk 0:01:56.1]} 21... Qe7 {[%clk 0:01:23.8]} 22. e4 {[%clk 0:01:47.1]} 22...
dxe4 {[%clk 0:01:21]} 23. Bxe4 {[%clk 0:01:45.4]} 23... Bxe4 {[%clk 0:01:19.3]}
24. Qxe4 {[%clk 0:01:46.3]} 24... f6 {[%clk 0:01:12.6]} 25. Qc6 {[%clk
0:01:37.7]} 25... Rxd1 {[%clk 0:00:58.4]} 26. Rxd1 {[%clk 0:01:36.6]} 26... Rd8
{[%clk 0:00:58.1]} 27. Rxd8+ {[%clk 0:01:24.3]} 27... Qxd8 {[%clk 0:00:57.5]}
28. Qc4+ {[%clk 0:01:24.3]} 28... Kh8 {[%clk 0:00:54.1]} 29. Qxa6 {[%clk
0:01:21.9]} 29... Qd1+ {[%clk 0:00:51.4]} 30. Kh2 {[%clk 0:01:18.8]} 30... Qd2
{[%clk 0:00:42.9]} 31. Qc8+ {[%clk 0:01:13]} 31... Kh7 {[%clk 0:00:40.2]} 32.
Qf5+ {[%clk 0:01:12.9]} 32... Kh8 {[%clk 0:00:36.8]} 33. Qf3 {[%clk 0:00:23.2]}
33... Qxb2 {[%clk 0:00:34.6]} 34. a4 {[%clk 0:00:23.3]} 34... Qa3 {[%clk
0:00:28.8]} 35. Qa8+ {[%clk 0:00:22.6]} 35... Kh7 {[%clk 0:00:27.9]} 36. Qe4+
{[%clk 0:00:23]} 36... Kh8 {[%clk 0:00:27.4]} 37. Qb4 {[%clk 0:00:23.6]} 37...
Qa2 {[%clk 0:00:23.1]} 38. Qxb6 {[%clk 0:00:21.6]} 38... Qxa4 {[%clk 0:00:21.2]}
39. Qb8+ {[%clk 0:00:20.3]} 39... Kh7 {[%clk 0:00:20.2]} 40. Qb1+ {[%clk
0:00:20.8]} 40... Kh8 {[%clk 0:00:18.2]} 41. Qc1 {[%clk 0:00:21.2]} 41... f5
{[%clk 0:00:16.5]} 42. c4 {[%clk 0:00:21.1]} 42... Qc6 {[%clk 0:00:15.6]} 43. c5
{[%clk 0:00:21]} 43... e4 {[%clk 0:00:14.8]} 44. g3 {[%clk 0:00:20.5]} 44... Kh7
{[%clk 0:00:14.8]} 45. h4 {[%clk 0:00:20.9]} 45... Kg6 {[%clk 0:00:14.2]} 46.
Qc4 {[%clk 0:00:20.4]} 46... Kf6 {[%clk 0:00:13.8]} 47. Qd4+ {[%clk 0:00:20.6]}
47... Kf7 {[%clk 0:00:13.2]} 48. Qe3 {[%clk 0:00:19.4]} 48... Kf6 {[%clk
0:00:13]} 49. Kh3 {[%clk 0:00:19.3]} 49... Kf7 {[%clk 0:00:12.9]} 50. Kh2 {[%clk
0:00:18]} 50... Kf6 {[%clk 0:00:12.9]} 51. Qd4+ {[%clk 0:00:18.4]} 51... Kf7
{[%clk 0:00:13]} 52. Kg1 {[%clk 0:00:19.1]} 52... g6 {[%clk 0:00:11.9]} 53. Kf1
{[%clk 0:00:19.3]} 53... Ke6 {[%clk 0:00:10.8]} 54. Ke2 {[%clk 0:00:19.3]} 54...
Kf7 {[%clk 0:00:10.5]} 55. Ke3 {[%clk 0:00:19.6]} 55... Ke6 {[%clk 0:00:07.9]}
56. h5 {[%clk 0:00:20]} 56... g5 {[%clk 0:00:05.2]} 57. Ke2 {[%clk 0:00:19.3]}
57... Qd5 {[%clk 0:00:04.8]} 58. Qg7 {[%clk 0:00:15]} 58... Qc4+ {[%clk
0:00:04.2]} 59. Ke1 {[%clk 0:00:14.4]} 59... Qc1+ {[%clk 0:00:03.9]} 60. Ke2
{[%clk 0:00:14.2]} 60... Qc4+ {[%clk 0:00:04]} 61. Ke3 {[%clk 0:00:14.6]} 61...
Qd3# {[%clk 0:00:02.8]} 0-1

[Event "*** Titled Tuesday Blitz"]
[Site "Chess.com"]
[Date "2021.04.06"]
[Round "3"]
[White "HanSchut"]
[Black "marianokar"]
[Result "0-1"]
[WhiteElo "2250"]
[BlackElo "2517"]
[TimeControl "180+1"]
[EndTime "10:29:36 PDT"]
[Termination "marianokar won by resignation"]

1. e4 {[%clk 0:03:00.9]} 1... c5 {[%clk 0:02:59.2]} 2. Nf3 {[%clk 0:02:54.3]}
2... d6 {[%clk 0:03:00.1]} 3. d4 {[%clk 0:02:54.1]} 3... cxd4 {[%clk 0:03:00.9]}
4. Nxd4 {[%clk 0:02:55]} 4... Nf6 {[%clk 0:03:01.3]} 5. f3 {[%clk 0:02:55.6]}
5... a6 {[%clk 0:02:55]} 6. c4 {[%clk 0:02:54.7]} 6... e6 {[%clk 0:02:55.6]} 7.
Nc3 {[%clk 0:02:54.2]} 7... Be7 {[%clk 0:02:56.2]} 8. Be2 {[%clk 0:02:54]} 8...
O-O {[%clk 0:02:56.7]} 9. O-O {[%clk 0:02:54.3]} 9... b6 {[%clk 0:02:57.1]} 10.
Be3 {[%clk 0:02:54.2]} 10... Bb7 {[%clk 0:02:57.7]} 11. Qd2 {[%clk 0:02:54.8]}
11... Qc7 {[%clk 0:02:57.9]} 12. Rac1 {[%clk 0:02:55.2]} 12... Nbd7 {[%clk
0:02:57.9]} 13. Rfd1 {[%clk 0:02:55.4]} 13... Rac8 {[%clk 0:02:57.1]} 14. Bf1
{[%clk 0:02:55.8]} 14... Qb8 {[%clk 0:02:56.7]} 15. Qf2 {[%clk 0:02:50.6]} 15...
Bd8 {[%clk 0:02:55.9]} 16. Kh1 {[%clk 0:02:50.6]} 16... Bc7 {[%clk 0:02:56.1]}
17. Qg1 {[%clk 0:02:51.4]} 17... Rfe8 {[%clk 0:02:51.7]} 18. Bf2 {[%clk
0:02:51.5]} 18... Ba8 {[%clk 0:02:46.2]} 19. b4 {[%clk 0:02:50.4]} 19... Rcd8
{[%clk 0:02:23.8]} 20. Nb3 {[%clk 0:02:48.7]} 20... Ne5 {[%clk 0:02:14.7]} 21.
Na4 {[%clk 0:02:45.6]} 21... b5 {[%clk 0:02:07.3]} 22. cxb5 {[%clk 0:02:40.1]}
22... axb5 {[%clk 0:02:07]} 23. Nc3 {[%clk 0:02:37.9]} 23... Bc6 {[%clk
0:01:38.3]} 24. Nd4 {[%clk 0:02:37.6]} 24... Bb6 {[%clk 0:00:57.2]} 25. Nxc6
{[%clk 0:02:32.1]} 25... Bxf2 {[%clk 0:00:57.7]} 26. Nxb8 {[%clk 0:02:21.6]}
26... Bxg1 {[%clk 0:00:57]} 27. Kxg1 {[%clk 0:02:17.5]} 27... Rxb8 {[%clk
0:00:56.8]} 28. Bxb5 {[%clk 0:02:17.3]} 28... Red8 {[%clk 0:00:55.7]} 29. a4
{[%clk 0:02:16.9]} 29... g5 {[%clk 0:00:52.2]} 30. h3 {[%clk 0:02:16.6]} 30...
Kf8 {[%clk 0:00:49]} 31. Rd2 {[%clk 0:02:16.8]} 31... Ke7 {[%clk 0:00:49.4]} 32.
Rdc2 {[%clk 0:02:16.9]} 32... h5 {[%clk 0:00:43.4]} 33. Ne2 {[%clk 0:02:17.3]}
33... g4 {[%clk 0:00:40.6]} 34. hxg4 {[%clk 0:02:16.9]} 34... hxg4 {[%clk
0:00:40.2]} 35. Rc7+ {[%clk 0:02:13.5]} 35... Kf8 {[%clk 0:00:40.2]} 36. f4
{[%clk 0:02:10.9]} 36... Ng6 {[%clk 0:00:40.4]} 37. g3 {[%clk 0:02:06.5]} 37...
Nxe4 {[%clk 0:00:39.5]} 38. Kg2 {[%clk 0:01:55.4]} 38... d5 {[%clk 0:00:32.9]}
39. Nd4 {[%clk 0:01:45.5]} 39... Ne7 {[%clk 0:00:23.3]} 40. Rh1 {[%clk
0:01:29.3]} 40... Rdc8 {[%clk 0:00:17.6]} 41. Rhc1 {[%clk 0:01:14.2]} 41... Rxc7
{[%clk 0:00:17]} 42. Rxc7 {[%clk 0:01:15.1]} 42... Nd6 {[%clk 0:00:17.7]} 43.
Rd7 {[%clk 0:00:56.3]} 43... Nxb5 {[%clk 0:00:16.7]} 44. axb5 {[%clk 0:00:52.9]}
44... Rb6 {[%clk 0:00:13]} 45. Rd8+ {[%clk 0:00:47.1]} 45... Kg7 {[%clk
0:00:12.9]} 46. Rd7 {[%clk 0:00:47.7]} 46... Kf6 {[%clk 0:00:13.2]} 47. Ra7
{[%clk 0:00:45.7]} 47... Nf5 {[%clk 0:00:12.4]} 48. Ra6 {[%clk 0:00:40.8]} 48...
Rb8 {[%clk 0:00:11.1]} 49. Nxf5 {[%clk 0:00:34.9]} 49... Kxf5 {[%clk 0:00:12]}
50. b6 {[%clk 0:00:33.6]} 50... Ke4 {[%clk 0:00:11.8]} 51. b5 {[%clk 0:00:34]}
51... d4 {[%clk 0:00:11.7]} 52. Kf2 {[%clk 0:00:33.8]} 52... f6 {[%clk
0:00:11.9]} 53. Ke2 {[%clk 0:00:34.1]} 53... e5 {[%clk 0:00:12.4]} 54. fxe5
{[%clk 0:00:28.6]} 54... fxe5 {[%clk 0:00:13.3]} 55. Kd2 {[%clk 0:00:28.5]}
55... Kd5 {[%clk 0:00:13.4]} 56. Ra7 {[%clk 0:00:11.4]} 56... e4 {[%clk
0:00:14.3]} 57. Rg7 {[%clk 0:00:11.8]} 57... Rxb6 {[%clk 0:00:13.3]} 58. Rxg4
{[%clk 0:00:10.3]} 58... Rxb5 {[%clk 0:00:13.4]} 59. Rg5+ {[%clk 0:00:10.8]}
59... Kc4 {[%clk 0:00:13.7]} 60. Rxb5 {[%clk 0:00:10.4]} 60... Kxb5 {[%clk
0:00:14.6]} 61. g4 {[%clk 0:00:10.9]} 61... Kc6 {[%clk 0:00:15.1]} 62. g5 {[%clk
0:00:10.4]} 62... Kd6 {[%clk 0:00:15.7]} 63. g6 {[%clk 0:00:11.3]} 63... Ke6
{[%clk 0:00:16.1]} 64. g7 {[%clk 0:00:12.2]} 64... Kf7 {[%clk 0:00:16.7]} 65.
g8=Q+ {[%clk 0:00:13.1]} 65... Kxg8 {[%clk 0:00:17]} 0-1

[Event "*** Titled Tuesday Blitz"]
[Site "Chess.com"]
[Date "2021.04.06"]
[Round "3"]
[White "Joseacorrea"]
[Black "Xeniya2005"]
[Result "1-0"]
[WhiteElo "2097"]
[BlackElo "2310"]
[TimeControl "180+1"]
[EndTime "10:29:37 PDT"]
[Termination "Joseacorrea won on time"]

1. c4 {[%clk 0:03:00.5]} 1... e5 {[%clk 0:02:58.5]} 2. Nc3 {[%clk 0:03:01]} 2...
Bb4 {[%clk 0:02:55.8]} 3. Nd5 {[%clk 0:02:58.3]} 3... Bc5 {[%clk 0:02:54.9]} 4.
e3 {[%clk 0:02:57]} 4... c6 {[%clk 0:02:54.3]} 5. Nc3 {[%clk 0:02:57]} 5... Nf6
{[%clk 0:02:52]} 6. g3 {[%clk 0:02:56.6]} 6... O-O {[%clk 0:02:47.7]} 7. Bg2
{[%clk 0:02:57]} 7... Re8 {[%clk 0:02:37.3]} 8. Nge2 {[%clk 0:02:56.6]} 8... e4
{[%clk 0:02:34.4]} 9. d3 {[%clk 0:02:48.6]} 9... exd3 {[%clk 0:02:27.6]} 10.
Qxd3 {[%clk 0:02:49.5]} 10... d6 {[%clk 0:02:25.8]} 11. O-O {[%clk 0:02:44.7]}
11... Nbd7 {[%clk 0:02:23.6]} 12. Na4 {[%clk 0:02:36.2]} 12... Ne5 {[%clk
0:02:21.2]} 13. Qc3 {[%clk 0:02:18.4]} 13... a5 {[%clk 0:02:07]} 14. Nxc5 {[%clk
0:02:17.4]} 14... dxc5 {[%clk 0:02:04.3]} 15. b3 {[%clk 0:02:14.4]} 15... Bg4
{[%clk 0:02:01.3]} 16. f3 {[%clk 0:01:42.3]} 16... Bd7 {[%clk 0:01:47.3]} 17.
Bb2 {[%clk 0:01:42.1]} 17... Qc7 {[%clk 0:01:40]} 18. Rad1 {[%clk 0:01:36.4]}
18... Rad8 {[%clk 0:01:38.5]} 19. Rd2 {[%clk 0:01:28.1]} 19... b5 {[%clk
0:01:31]} 20. Rfd1 {[%clk 0:01:16.7]} 20... b4 {[%clk 0:01:12.4]} 21. Qc2 {[%clk
0:01:12]} 21... Qc8 {[%clk 0:01:06.7]} 22. Nf4 {[%clk 0:00:56.3]} 22... h6
{[%clk 0:00:30.2]} 23. Nd3 {[%clk 0:00:47.3]} 23... Nxd3 {[%clk 0:00:25.2]} 24.
Rxd3 {[%clk 0:00:48.2]} 24... Qc7 {[%clk 0:00:18.8]} 25. e4 {[%clk 0:00:43.8]}
25... Be6 {[%clk 0:00:17]} 26. Qd2 {[%clk 0:00:41.7]} 26... Rxd3 {[%clk
0:00:16.1]} 27. Qxd3 {[%clk 0:00:42.6]} 27... Nd7 {[%clk 0:00:15.6]} 28. Qe3
{[%clk 0:00:39.8]} 28... Rd8 {[%clk 0:00:12]} 29. Qf4 {[%clk 0:00:32.2]} 29...
Qc8 {[%clk 0:00:09.7]} 30. Rd6 {[%clk 0:00:29.3]} 30... Nf8 {[%clk 0:00:09.2]}
31. Qe5 {[%clk 0:00:23.2]} 31... f6 {[%clk 0:00:08.8]} 32. Qf4 {[%clk
0:00:20.4]} 32... Ng6 {[%clk 0:00:05.1]} 33. Qd2 {[%clk 0:00:18.9]} 33... Rd7
{[%clk 0:00:04]} 34. Rxd7 {[%clk 0:00:17.2]} 34... Qxd7 {[%clk 0:00:03.8]} 35.
Qxd7 {[%clk 0:00:14.5]} 35... Bxd7 {[%clk 0:00:03.6]} 36. Kf2 {[%clk 0:00:15.4]}
36... Kf7 {[%clk 0:00:03.8]} 37. Ke3 {[%clk 0:00:15.8]} 37... f5 {[%clk
0:00:03.7]} 38. Bf1 {[%clk 0:00:13.2]} 38... Ke6 {[%clk 0:00:03.1]} 39. exf5+
{[%clk 0:00:12.3]} 39... Kxf5 {[%clk 0:00:02.4]} 40. Bd3+ {[%clk 0:00:13.2]}
40... Kg5 {[%clk 0:00:02]} 41. h4+ {[%clk 0:00:13.4]} 41... Kh5 {[%clk
0:00:02.1]} 42. g4+ {[%clk 0:00:13.4]} 42... Kxh4 {[%clk 0:00:01.5]} 43. Bxg6
{[%clk 0:00:12.9]} 43... Kg5 {[%clk 0:00:02.4]} 44. Bf7 {[%clk 0:00:11.3]} 44...
g6 {[%clk 0:00:02.6]} 45. f4+ {[%clk 0:00:07.9]} 45... Kxg4 {[%clk 0:00:02.5]}
46. Bxg6 {[%clk 0:00:08.2]} 46... h5 {[%clk 0:00:02.7]} 47. Be4 {[%clk
0:00:08.7]} 47... h4 {[%clk 0:00:02.5]} 48. Bh1 {[%clk 0:00:08.7]} 48... h3
{[%clk 0:00:02.3]} 49. Be5 {[%clk 0:00:09.1]} 49... Kg3 {[%clk 0:00:02.3]} 50.
Bf3 {[%clk 0:00:07.4]} 50... h2 {[%clk 0:00:02.1]} 51. f5+ {[%clk 0:00:07.6]}
51... Kh3 {[%clk 0:00:02]} 52. f6 {[%clk 0:00:07.1]} 1-0

[Event "*** Titled Tuesday Blitz"]
[Site "Chess.com"]
[Date "2021.04.06"]
[Round "3"]
[White "onnoelgersma"]
[Black "Love_craft"]
[Result "1-0"]
[WhiteElo "2432"]
[BlackElo "2583"]
[TimeControl "180+1"]
[EndTime "10:29:38 PDT"]
[Termination "onnoelgersma won by checkmate"]

1. d4 {[%clk 0:03:00.9]} 1... Nf6 {[%clk 0:02:57.1]} 2. Nf3 {[%clk 0:02:46.9]}
2... g6 {[%clk 0:02:57]} 3. Bg5 {[%clk 0:02:46.2]} 3... Bg7 {[%clk 0:02:56.8]}
4. e3 {[%clk 0:02:46.9]} 4... h6 {[%clk 0:02:56.5]} 5. Bh4 {[%clk 0:02:46.6]}
5... b6 {[%clk 0:02:56]} 6. Nbd2 {[%clk 0:02:46.5]} 6... Bb7 {[%clk 0:02:56.4]}
7. c3 {[%clk 0:02:46.9]} 7... O-O {[%clk 0:02:56.6]} 8. Be2 {[%clk 0:02:47.2]}
8... d5 {[%clk 0:02:57.1]} 9. O-O {[%clk 0:02:47.3]} 9... c5 {[%clk 0:02:57.7]}
10. a4 {[%clk 0:02:47.5]} 10... Nc6 {[%clk 0:02:57.5]} 11. h3 {[%clk 0:02:46.5]}
11... Re8 {[%clk 0:02:56.2]} 12. Bg3 {[%clk 0:02:46.2]} 12... Rc8 {[%clk
0:02:45.3]} 13. Bb5 {[%clk 0:02:41.3]} 13... a6 {[%clk 0:02:43.3]} 14. Bxc6
{[%clk 0:02:41.4]} 14... Bxc6 {[%clk 0:02:37.3]} 15. Be5 {[%clk 0:02:38.9]}
15... Qd7 {[%clk 0:02:34.3]} 16. b4 {[%clk 0:02:37.2]} 16... cxb4 {[%clk
0:02:25.1]} 17. cxb4 {[%clk 0:02:38.1]} 17... Bb7 {[%clk 0:02:23.3]} 18. Qb3
{[%clk 0:02:35]} 18... Bf8 {[%clk 0:02:14.1]} 19. Rac1 {[%clk 0:02:30.3]} 19...
Ne4 {[%clk 0:02:12.8]} 20. Bf4 {[%clk 0:02:23.4]} 20... Rxc1 {[%clk 0:02:05.5]}
21. Rxc1 {[%clk 0:02:22.2]} 21... Rc8 {[%clk 0:02:05.3]} 22. Rxc8 {[%clk
0:02:16.1]} 22... Qxc8 {[%clk 0:02:06.2]} 23. Nxe4 {[%clk 0:02:03.8]} 23... dxe4
{[%clk 0:02:04.7]} 24. Ne5 {[%clk 0:02:02]} 24... Qc1+ {[%clk 0:02:00.9]} 25.
Kh2 {[%clk 0:02:00.5]} 25... e6 {[%clk 0:02:01.2]} 26. Nd7 {[%clk 0:01:23.9]}
26... Be7 {[%clk 0:01:46.3]} 27. Nxb6 {[%clk 0:01:11.2]} 27... Qd2 {[%clk
0:01:17]} 28. b5 {[%clk 0:00:53]} 28... Qxf2 {[%clk 0:01:14.7]} 29. Qc3 {[%clk
0:00:34.2]} 29... Bd8 {[%clk 0:00:57.8]} 30. Nc4 {[%clk 0:00:20.8]} 30... axb5
{[%clk 0:00:45.9]} 31. axb5 {[%clk 0:00:21.7]} 31... Bd5 {[%clk 0:00:42.3]} 32.
Nd6 {[%clk 0:00:21.6]} 32... Kg7 {[%clk 0:00:33.8]} 33. Qc8 {[%clk 0:00:16.6]}
33... Bg5 {[%clk 0:00:30.2]} 34. Be5+ {[%clk 0:00:13]} 34... f6 {[%clk
0:00:18.4]} 35. Qd7+ {[%clk 0:00:13.2]} 35... Kh8 {[%clk 0:00:17.7]} 36. Qe8+
{[%clk 0:00:12.8]} 36... Kh7 {[%clk 0:00:17.6]} 37. Qf7+ {[%clk 0:00:12.6]}
37... Kh8 {[%clk 0:00:17.8]} 38. Qf8+ {[%clk 0:00:11.8]} 38... Kh7 {[%clk
0:00:17.8]} 39. Nf7 {[%clk 0:00:08.7]} 39... Bf4+ {[%clk 0:00:16.4]} 40. Bxf4
{[%clk 0:00:08.1]} 40... g5 {[%clk 0:00:16.8]} 41. Qh8+ {[%clk 0:00:04.7]} 41...
Kg6 {[%clk 0:00:17.1]} 42. Qg8+ {[%clk 0:00:05.6]} 42... Kh5 {[%clk 0:00:15.3]}
43. Bg3 {[%clk 0:00:06.1]} 43... Qxe3 {[%clk 0:00:14.2]} 44. Qh7 {[%clk
0:00:06.6]} 44... g4 {[%clk 0:00:13.4]} 45. hxg4+ {[%clk 0:00:05.9]} 45... Kxg4
{[%clk 0:00:10.6]} 46. Qg6+ {[%clk 0:00:06.5]} 46... Qg5 {[%clk 0:00:09.6]} 47.
Nxg5 {[%clk 0:00:07.1]} 47... fxg5 {[%clk 0:00:09.4]} 48. Qf6 {[%clk 0:00:07.5]}
48... h5 {[%clk 0:00:07.6]} 49. Qe5 {[%clk 0:00:08]} 49... h4 {[%clk 0:00:07.1]}
50. Bxh4 {[%clk 0:00:08.6]} 50... gxh4 {[%clk 0:00:06.7]} 51. b6 {[%clk
0:00:09.5]} 51... e3 {[%clk 0:00:04]} 52. b7 {[%clk 0:00:09.6]} 52... e2 {[%clk
0:00:03.9]} 53. b8=Q {[%clk 0:00:08.9]} 53... e1=Q {[%clk 0:00:03.7]} 54. Qxe1
{[%clk 0:00:09.2]} 54... h3 {[%clk 0:00:03.1]} 55. Qe2+ {[%clk 0:00:09.6]} 55...
Bf3 {[%clk 0:00:02.3]} 56. Qxf3+ {[%clk 0:00:09.7]} 56... Kh4 {[%clk 0:00:03.2]}
57. Qh8+ {[%clk 0:00:09.6]} 57... Kg5 {[%clk 0:00:03.3]} 58. Qhh5# {[%clk
0:00:09.6]} 1-0